[Event "1000GM Memorial Day NY IM-B 2023"]
[Site "New York"]
[Date "2023.05.28"]
[Round "5.5"]
[White "Espinosa, Pedro"]
[Black "Nagy, Gabor"]
[Result "1/2-1/2"]
[ECO "E11"]
[WhiteElo "2229"]
[BlackElo "2468"]
[Annotator "TA"]
[PlyCount "104"]
[EventDate "2023.05.23"]
[EventType "schev"]
[EventCountry "USA"]
[SourceTitle "playchess.com"]
[Source "ChessBase"]
[SourceQuality "1"]
[TimeControl "5400+30"]

{[%evp 9,103,12,42,36,37,43,47,41,50,15,23,23,17,12,24,5,30,-14,-16,-12,-20,-41,-22,-42,-43,-68,-9,-20,-14,-19,-14,-36,-7,-36,-38,-40,-54,-89,-43,-71,-67,-85,-75,-123,-13,-14,-15,-35,-24,-31,-33,-62,-69,-428,-462,-439,-8,-8,-8,-275,-231,-269,-284,-254,-272,-247,-247,-282,-269,-392,-377,-453,-411,-584,-581,-575,-4,-4,-4,-4,-4,-4,-4,-4,-4,-4,-4,-4,-4,-4,-4,-4,-4,-4,0,0]} 1. d4 {[%emt 0:00:01]} Nf6 {[%emt 0:01:34]} 2. c4 {[%emt 0:00:02]} e6 {[%emt 0:01:12]} 3. Nf3 {[%emt 0:00:10]} Bb4+ {[%emt 0:01:50]} 4. Bd2 {[%emt 0:00:12]} a5 {[%emt 0:00:23]} 5. a3 {[%emt 0:00:35]} Be7 {[%emt 0:00:32]} 6. Nc3 {[%emt 0:01:11] E11: Bogo-Indian.} d5 {[%emt 0:00:10]} 7. Bf4 {[%emt 0:00:56]} O-O {[%emt 0:01:04]} 8. e3 {[%emt 0:00:29] White is slightly better.} b6 {[%emt 0:01:01]} 9. cxd5 {[%emt 0:01:59]} Nxd5 {[%emt 0:00:34]} 10. Nxd5 {[%emt 0:00:29]} exd5 {[%emt 0:00:08]} 11. Bd3 {[%emt 0:02:35] [#]} c5 $146 {[%emt 0:00:43]} ({Predecessor:} 11... Bd6 12. Ne5 Ba6 13. Bxa6 Rxa6 14. Rc1 Qe8 15. Qb3 c6 16. O-O Qe6 17. e4 dxe4 18. Qxe6 fxe6 {½-½ Piskov,Y (2410)-Goldin,A (2500) URS Club Cup 1st 1988 (6)}) 12. Ne5 {[%emt 0:04:00]} Ba6 {[%emt 0:09:07]} 13. O-O {[%emt 0:04:01]} Bxd3 {[%emt 0:02:56]} 14. Qxd3 {[%emt 0:00:12]} c4 {[%emt 0:00:08]} 15. Qf5 {[%emt 0:01:50]} Qc8 {[%emt 0:01:36]} 16. Qh5 {[%emt 0:01:41]} (16. Qc2 {simplifies} Nd7 17. e4 Nxe5 18. Bxe5 Qc6 19. Rae1) 16... Nd7 {[%emt 0:03:15]} 17. Rfe1 {[%emt 0:03:36]} f5 {[%emt 0:04:53]} (17... Nf6 $15 18. Qe2 Re8) 18. Qf3 {[%emt 0:04:31]} Nxe5 {[%emt 0:03:30]} 19. Bxe5 {[%emt 0:02:31]} Qe6 {[%emt 0:00:17]} 20. Qh3 {[%emt 0:02:13][%cal Oe3e4]} Rae8 {[%emt 0:00:56]} 21. f4 {[%emt 0:01:15]} (21. e4 {feels hotter.} dxe4 22. Rxe4 Bxa3 23. Rh4) 21... b5 {[%emt 0:00:38]} 22. Qf3 {[%emt 0:04:46]} Rc8 {[%emt 0:00:52]} 23. Kh1 {[%emt 0:00:42]} Rf7 {[%emt 0:01:52]} ({Black should play} 23... c3 $17 24. Qe2 cxb2 25. Qxb2 Qd7) 24. Rg1 {[%emt 0:02:05]} Bf8 {[%emt 0:02:26]} 25. g4 {[%emt 0:02:53]} fxg4 {[%emt 0:01:33]} 26. Rxg4 {[%emt 0:01:59]} b4 {[%emt 0:02:04]} (26... c3 $17 27. Rg2 (27. bxc3 Rxc3 28. Rg5 Qc6 $17) 27... b4 28. axb4 axb4 29. bxc3 Rxc3) 27. axb4 $11 {[%emt 0:06:29]} axb4 {[%emt 0:00:11]} 28. Rag1 {[%emt 0:03:03]} c3 {[%emt 0:01:25]} 29. bxc3 {[%emt 0:00:51]} bxc3 {[%emt 0:00:14] Hoping for ...c2.} 30. Qh3 {[%emt 0:03:03][%cal Og4g7] Threatening mate with Rxg7+!} Rc6 $1 {[%emt 0:00:42]} 31. f5 $2 {[%emt 0:03:30][%mdl 8192]} Qxf5 $19 {[%emt 0:04:48]} 32. Bxg7 {[%emt 0:08:27] Intending Bf6+ and mate.} Qf3+ {[%emt 0:01:48]} ({Worse is} 32... Bxg7 33. Rxg7+ Kf8 34. Rxf7+ Qxf7 35. Rf1 $11) (32... Rg6 $1 $19 33. Be5 Bg7) 33. Qxf3 $11 {[%emt 0:00:16]} Rxf3 {[%emt 0:00:07]} 34. Bxf8+ $2 {[%emt 0:16:34][%mdl 8192]} (34. Kg2 $11 Rf5 35. Bxf8+ Kxf8 36. Rc1) 34... Kxf8 {[%emt 0:00:14][%mdl 4096] Endgame KRR-KRR} 35. Rg8+ {[%emt 0:00:15]} Ke7 {[%emt 0:00:20]} 36. R8g7+ {[%emt 0:00:14]} Rf7 {[%emt 0:01:52]} 37. R7g2 {[%emt 0:01:16]} Ke6 $1 {[%emt 0:00:19]} ({Weaker is} 37... c2 38. Rc1 $11) 38. Rc2 {[%emt 0:00:50]} Rf3 $1 {[%emt 0:00:28][%cal Oe6f5] White must now prevent ...Kf5!} 39. Rg8 {[%emt 0:01:57] [#]} (39. Kg2 $142 Rxe3 40. Rf1) 39... Kf7 $1 $19 {[%emt 0:04:17]} ({Resist} 39... Rxe3 40. Re8+ Kf5 41. Rxe3 $18) 40. Rd8 {[%emt 0:00:54]} Rxe3 {[%emt 0:03:42] ...Rd3 is the strong threat.} 41. Rxd5 {[%emt 0:00:10] [#]} (41. Kg1 {might work better.} Rg6+ 42. Kf2) 41... Rd3 $1 {[%emt 0:00:45] ...Rd1+ would be deadly.} 42. Rf5+ {[%emt 0:10:58]} Rf6 $2 {[%emt 0:03:28]} ({Black should try} 42... Ke6 $19 43. d5+ Rxd5) 43. Rcf2 $11 {[%emt 0:02:39] The position is equal.} Rxf5 {[%emt 0:02:07]} 44. Rxf5+ {[%emt 0:01:34] KR-KR} Ke6 {[%emt 0:00:08]} (44... Kg6 $5 45. Rc5 $8 Kf6 $11) 45. Rc5 {[%emt 0:00:15]} h5 {[%emt 0:00:49]} 46. h4 {[%emt 0:00:36]} Rxd4 {[%emt 0:01:31] aiming for ...Rd3.} 47. Rxc3 {[%emt 0:00:07]} Rxh4+ {[%emt 0:00:06]} 48. Kg2 {[%emt 0:00:06]} Ke5 {[%emt 0:00:07]} 49. Rc5+ {[%emt 0:00:15]} Kd6 {[%emt 0:00:08]} 50. Ra5 {[%emt 0:00:10]} Rd4 {[%emt 0:00:10]} 51. Rxh5 {[%emt 0:00:12]} Rd5 {[%emt 0:00:05]} 52. Rxd5+ {[%emt 0:00:02]} Kxd5 {[%emt 0:00:03] Black had all chances to win.   Weighted Error Value: White=0.42/Black=0.28 (precise)} 1/2-1/2

[Event "1000GM Memorial Day NY IM-B 2023"]
[Site "New York"]
[Date "2023.05.28"]
[Round "5.6"]
[White "Hebbar, Eshaan"]
[Black "Bortnyk, Mykola"]
[Result "0-1"]
[ECO "A41"]
[WhiteElo "1969"]
[BlackElo "2425"]
[Annotator "TA"]
[PlyCount "72"]
[EventDate "2023.05.23"]
[EventType "schev"]
[EventCountry "USA"]
[SourceTitle "playchess.com"]
[Source "ChessBase"]
[SourceQuality "1"]
[TimeControl "5400+30"]

{[%evp 9,72,16,22,11,8,0,20,0,9,0,0,2,15,15,19,0,11,0,6,6,35,13,38,12,42,0,0,0,147,140,95,13,80,69,72,-210,-114,-115,-135,-158,-156,-204,-212,-200,-186,-191,0,0,0,-170,0,-647,-138,-137,-130,-703,-753,-706,-700,-691,-683,-691,-656,-689,-673]} 1. d4 {[%emt 0:00:04]} d6 {[%emt 0:00:25]} 2. c4 {[%emt 0:00:19]} e5 {[%emt 0:00:02]} 3. e3 {[%emt 0:00:42]} Nd7 {[%emt 0:01:23]} 4. Nc3 {[%emt 0:00:21]} g6 {[%emt 0:00:04]} 5. Bd3 {[%emt 0:01:30]} Bg7 {[%emt 0:00:08]} 6. Nge2 {[%emt 0:00:51] A41: 1 d4 d6: Tartakower System and Modern Defence.} f5 {[%emt 0:00:45]} 7. O-O {[%emt 0:00:49]} Ngf6 {[%emt 0:00:42]} 8. b4 {[%emt 0:03:50][%cal Bb2b4,Bb4b5][%mdl 32] The position is equal.} O-O {[%emt 0:03:05] [#]} 9. a4 $146 {[%emt 0:03:43]} ({Predecessor:} 9. Qb3 Kh8 10. a4 e4 11. Bb1 Re8 12. Ra2 Nf8 13. f3 exf3 14. gxf3 c6 15. d5 cxd5 16. Nxd5 Nxd5 17. cxd5 {0-1 Arias Gaviria,M (2280)-Movsziszian,K (2473) Merida World Heritage op 2nd 2022 (3)}) 9... a5 {[%emt 0:03:07]} 10. b5 {[%emt 0:00:14]} Kh8 {[%emt 0:00:06]} 11. Ba3 {[%emt 0:02:22]} b6 {[%emt 0:00:13]} 12. Rc1 {[%emt 0:09:16]} Bb7 {[%emt 0:01:43]} 13. Qb3 {[%emt 0:04:40]} exd4 {[%emt 0:00:47]} 14. exd4 {[%emt 0:00:16]} Ne4 {[%emt 0:00:18]} 15. Nxe4 {[%emt 0:01:18]} fxe4 {[%emt 0:01:07]} 16. Bb1 {[%emt 0:00:09]} (16. Bc2 {simplifies} Qh4 17. Qg3 Qxg3 18. hxg3 Rad8 19. Rfe1) 16... Qh4 {[%emt 0:02:04][%cal Of8f3]} 17. c5 {[%emt 0:23:57]} bxc5 {[%emt 0:00:16]} 18. dxc5 {[%emt 0:00:09]} Ne5 {[%emt 0:04:25]} (18... Nxc5 $11 {remains equal.} 19. Bxc5 dxc5) 19. Qg3 $16 {[%emt 0:10:01]} Qh5 {[%emt 0:00:19]} 20. Rfe1 {[%emt 0:00:37]} (20. cxd6 $16 Qxe2 21. Rfe1) 20... Ng4 {[%emt 0:10:43]} (20... Nf3+ $1 $11 {keeps the balance.} 21. gxf3 Rxf3) 21. h3 $1 {[%emt 0:15:06]} Nxf2 {[%emt 0:00:11] ...Be5 is the strong threat.} 22. Nf4 $2 {[%emt 0:04:25][%mdl 8192]} (22. cxd6 $16 {is forced if you want to stay better. Strongly threatening Rc5.} Be5 23. Rc5 cxd6 24. Rxe5 dxe5 25. Bxf8 Rxf8 26. Nc1) 22... Qh6 {[%emt 0:03:11]} (22... Rxf4 $1 $19 23. Qxf4 Bd4 24. Qxf2 Bxf2+ 25. Kxf2 d5 26. Bb2+ Kg8) 23. Qxf2 $17 {[%emt 0:08:12][%cal Oc5c6] And now c6! would win.} Rxf4 {[%emt 0:00:04]} (23... Qxf4 24. Qxf4 Rxf4 25. cxd6 Bd4+ 26. Kh1 cxd6 27. Bxd6 $18) 24. Qe3 {[%emt 0:00:53]} Raf8 {[%emt 0:00:02][%cal Of4f1] aiming for ...Rf1+!} 25. Re2 {[%emt 0:01:20]} Be5 {[%emt 0:02:13] Hoping for ...Qg7.} 26. c6 {[%emt 0:04:05]} Bc8 {[%emt 0:00:02]} 27. Bxe4 {[%emt 0:01:09] [#]} Bg4 $2 {[%emt 0:00:05]} 28. Rf2 $11 {[%emt 0:01:09]} (28. hxg4 $2 {is a self mate.} Rf1+ 29. Rxf1 Qh2#) 28... Qg7 {[%emt 0:01:35]} 29. Rd2 {[%emt 0:01:36] [#]} (29. Rxf4 $1 $11 Bxf4 30. Qd3 Bxc1 31. Bxc1) 29... Qf6 $2 {[%emt 0:00:18]} ({Black should play} 29... Bxh3 $1 $19 30. gxh3 Qh6) 30. Qd3 {[%emt 0:01:05][%mdl 8192] [#]} (30. g3 $11 Rf1+ 31. Kh2) 30... Bxh3 $1 {[%emt 0:02:48][%mdl 512]} 31. gxh3 $17 {[%emt 0:00:55] [#]} Rf2 $40 {[%emt 0:00:01][%cal Bf4f2,Bf2f1,Bf1c1,Bc1c4][%mdl 160] White is in trouble.} 32. Qe3 {[%emt 0:00:48][%mdl 8192]} (32. Kh1 $17 Qh4 33. Rxf2 Rxf2 34. Kg1 (34. Qe3 $2 Rh2+ 35. Kg1 Rxh3 $19)) 32... Rf1+ $19 {[%emt 0:00:31] Black is clearly winning.} 33. Kg2 {[%emt 0:00:06]} Rxc1 {[%emt 0:00:01][%csl Gc1,Gf8][%cal Rf6f1]} 34. Rf2 {[%emt 0:00:56] Prevents Qf1+.} Qxf2+ {[%emt 0:00:46]} 35. Qxf2 {[%emt 0:00:01]} Rxf2+ {[%emt 0:00:02]} 36. Kxf2 {[%emt 0:00:01]} Rc4 {[%emt 0:00:45][%csl LRa4,LRe4] Beautiful play by Bortnyk!   Weighted Error Value: White=0.70/Black=0.54} 0-1

[Event "1000GM Memorial Day NY IM-B 2023"]
[Site "New York"]
[Date "2023.05.28"]
[Round "6.1"]
[White "Ansh M Shah"]
[Black "Barbosa, Oliver"]
[Result "1/2-1/2"]
[ECO "E01"]
[WhiteElo "2171"]
[BlackElo "2492"]
[Annotator "TA"]
[PlyCount "171"]
[EventDate "2023.05.23"]
[EventType "schev"]
[EventCountry "USA"]
[SourceTitle "playchess.com"]
[Source "ChessBase"]
[SourceQuality "1"]
[TimeControl "5400+30"]

{[%evp 15,171,34,6,-52,-15,-47,-55,-54,-55,-64,-51,-57,0,0,0,-1,-7,-9,-6,-20,-8,-14,-16,-18,0,0,0,-12,-19,-31,-16,-55,2,-100,124,120,94,90,100,68,81,-21,29,0,0,0,0,0,-17,-58,-60,-50,-37,-29,-25,-51,-48,-44,-15,-12,-13,-16,0,-27,-27,-21,-27,-29,-8,-8,-8,-8,-8,-59,-52,-52,-52,-53,-58,-58,-5,-5,-2,-2,0,0,0,0,0,0,0,0,0,0,0,0,0,0,0,0,0,0,8,8,14,14,15,15,16,16,17,20,41,14,14,14,14,14,14,14,14,14,14,14,14,15,16,14,14,14,14,11,11,0,15,15,17,20,20,14,15,0,0,0,0,0,0,0,0,0,0,0,0,0,0,0,0,0]} 1. d4 {[%emt 0:00:02]} Nf6 {[%emt 0:02:27]} 2. c4 {[%emt 0:00:07]} e6 {[%emt 0:00:07]} 3. Nf3 {[%emt 0:00:21]} c5 {[%emt 0:00:12]} 4. g3 {[%emt 0:00:42]} cxd4 {[%emt 0:00:11]} 5. Nxd4 {[%emt 0:00:10]} d5 {[%emt 0:00:05]} 6. Bg2 {[%emt 0:00:54]} e5 {[%emt 0:00:11]} 7. Nf3 {[%emt 0:00:40]} d4 {[%emt 0:00:07]} 8. O-O {[%emt 0:00:48]} Nc6 {[%emt 0:00:05]} 9. Nbd2 {[%emt 0:02:10] [#] E01: Catalan: Early deviations.} (9. e3 $11) 9... h6 $146 {[%emt 0:02:04]} ({Predecessor:} 9... Bc5 10. a3 a5 11. Qc2 O-O 12. Ne4 Nxe4 13. Qxe4 f6 14. Bd2 Be6 15. Qc2 a4 {0-1 Richter,C (2387)-Berelowitsch,A (2542) GER-ch 3rd Internet Blitz GpD 2005 (3.3)}) 10. Qc2 {[%emt 0:04:52]} Be7 {[%emt 0:01:15]} 11. Ne4 {[%emt 0:07:01] Black is slightly better.} Nh7 {[%emt 0:00:57]} 12. Rd1 {[%emt 0:10:21]} Qc7 {[%emt 0:04:18]} (12... f5 $5 {[%cal Rf5e4]} 13. Nc3 e4 $15) 13. c5 {[%emt 0:11:08]} Bg4 {[%emt 0:42:48]} (13... O-O $1 $15) 14. b4 $11 {[%emt 0:20:11]} O-O {[%emt 0:05:38]} 15. b5 {[%emt 0:03:35]} Nb4 {[%emt 0:00:15]} 16. Qb3 {[%emt 0:03:31]} a5 {[%emt 0:00:33]} (16... Bxc5 $2 17. Nxc5 Qxc5 18. Ba3 Qxb5 19. Qxb4 Qxb4 20. Bxb4 $18) 17. bxa6 {[%emt 0:01:41]} Nxa6 {[%emt 0:00:34]} 18. Qb6 {[%emt 0:03:09]} Qxb6 {[%emt 0:04:01]} (18... Bxc5 $2 19. Qxc7 Nxc7 20. Nxc5 $18) 19. cxb6 {[%emt 0:00:02]} f6 {[%emt 0:15:17]} 20. h3 $36 {[%emt 0:06:15][%mdl 2048] White is more active.} Be6 {[%emt 0:00:25]} 21. g4 {[%emt 0:02:50]} Nb4 {[%emt 0:01:09]} 22. Bd2 {[%emt 0:01:32]} Nd5 {[%emt 0:01:17]} (22... Bxa2 23. Nh4 Nc6 24. Ng3 $16) (22... Nc2 $5 {[%cal Rc2a1]} 23. Rab1 Na3 $17) 23. Nh4 {[%emt 0:02:00]} Rfd8 {[%emt 0:02:17]} (23... Nxb6 24. Rdb1 Nc4 25. Rxb7 $11) (23... Ba3 $1 $15) 24. Rdb1 {[%emt 0:05:20] [#]} (24. a4 $11) 24... Ra6 $2 {[%emt 0:02:12] [#]} (24... Ba3 $1 $17 25. f4 exf4) 25. a4 $1 $16 {[%emt 0:01:25]} Kf7 {[%emt 0:01:35] Repels Ng6} (25... Rxb6 $2 26. Rxb6 Nxb6 27. Ba5 $18) 26. a5 {[%emt 0:03:11]} g6 {[%emt 0:00:08] Dodges Nf5} 27. Ng3 {[%emt 0:02:35] White is more active.} (27. Bxh6 $2 f5 28. Nf3 (28. gxf5 $2 gxf5 29. Nxf5 Bxf5 $19) 28... fxe4 $17) 27... Ng5 {[%emt 0:01:27]} 28. Nf3 {[%emt 0:01:24]} (28. Rb5 $16) 28... Rd7 {[%emt 0:01:06]} ({Better is} 28... Nxf3+ $1 29. Bxf3 f5) 29. h4 {[%emt 0:03:12]} Nxf3+ {[%emt 0:00:19]} 30. Bxf3 {[%emt 0:00:04]} Nc3 {[%emt 0:00:13]} 31. Bxc3 {[%emt 0:01:27]} dxc3 {[%emt 0:00:02]} 32. Rc1 {[%emt 0:01:51] Inhibits c2.} Bb4 {[%emt 0:00:25]} 33. Ne4 {[%emt 0:01:16][%cal Bg3e4,Be4c3,Bc3b5,Bb5c7,Bc7e8][%mdl 32]} f5 {[%emt 0:00:14]} (33... Bxa5 34. Nc5 (34. Nxc3 Bxb6 35. Rab1 Rc7 $17) 34... Bxb6 35. Nxa6 bxa6 36. Rxa6 $16) 34. gxf5 {[%emt 0:00:38]} gxf5 {[%emt 0:00:01]} 35. Nxc3 {[%emt 0:00:52]} e4 {[%emt 0:01:02]} 36. Bh5+ {[%emt 0:00:30]} Kf6 {[%emt 0:00:01]} 37. Nb5 {[%emt 0:00:35]} Rxa5 {[%emt 0:00:32]} ({Don't take} 37... Bxa5 38. Nc7 Bd2 39. Rxa6 (39. Nxa6 Bxc1 40. Rxc1 bxa6 $11) 39... Bxc1 40. Ra7 $16) 38. Nc7 $1 {[%emt 0:00:31]} Ba2 {[%emt 0:04:49]} (38... Rxa1 {simplifies} 39. Rxa1 Bc5 40. Nxe6 Kxe6 41. Ra8 e3) 39. Ne8+ {[%emt 0:00:31]} Ke5 {[%emt 0:00:21]} 40. Rc7 {[%emt 0:00:16]} Be6 {[%emt 0:00:48] This pair of bishops is nice.} 41. Rb1 {[%emt 0:00:38]} ({Reject} 41. Rxa5+ Bxa5 42. Rc5+ Rd5 $17) 41... Rb5 {[%emt 0:02:32]} 42. Ng7 {[%emt 0:00:28]} Rxb6 {[%emt 0:00:58]} 43. Nxe6 {[%emt 0:00:12]} Kxe6 {[%emt 0:00:25]} 44. Rc4 {[%emt 0:00:49]} (44. Rc8 $11) 44... Rg7+ {[%emt 0:01:40]} 45. Kf1 {[%emt 0:00:31] [#]} Bc5 {[%emt 0:00:12][%mdl 64] Discovered Attack, Back Rank} 46. Rxb6+ {[%emt 0:00:39]} Bxb6 $15 {[%emt 0:00:02][%mdl 4096] Endgame KRB-KRB} 47. e3 {[%emt 0:00:28]} Kd5 {[%emt 0:02:05]} ({Black should try} 47... Rc7 $15 48. Rxc7 Bxc7) 48. Rc8 $11 {[%emt 0:00:20]} Bc5 {[%emt 0:01:01]} 49. Rh8 {[%emt 0:00:38]} b5 {[%emt 0:00:12]} 50. Rxh6 {[%emt 0:00:14]} b4 {[%emt 0:00:20] aiming for ...b3.} 51. Bd1 {[%emt 0:00:41] White threatens Bb3+ and mate.} Kc4 {[%emt 0:00:55] Wards off Bb3+} 52. Be2+ {[%emt 0:00:35]} Kd5 {[%emt 0:01:08] White must now prevent ...b3.} 53. Bd1 {[%emt 0:00:22] Bb3+ would kill now.} f4 {[%emt 0:00:31]} 54. Bb3+ {[%emt 0:00:30]} Ke5 {[%emt 0:00:01]} 55. Rh5+ {[%emt 0:00:31]} Kd6 {[%emt 0:00:07]} 56. exf4 {[%emt 0:00:34]} Rg4 {[%emt 0:00:01]} 57. Rh6+ {[%emt 0:00:32]} Kc7 {[%emt 0:00:04]} 58. Bd5 {[%emt 0:00:22] Rc6+ is the strong threat.} Bd6 {[%emt 0:01:33]} 59. Bxe4 {[%emt 0:00:43]} Bxf4 {[%emt 0:00:03]} 60. Rc6+ {[%emt 0:00:31]} Kd8 {[%emt 0:00:25]} 61. h5 {[%emt 0:00:25]} Rh4 {[%emt 0:00:07]} 62. Bg6 {[%emt 0:00:16]} Be5 {[%emt 0:00:37]} 63. Re6 {[%emt 0:00:43]} Bc3 {[%emt 0:00:14]} 64. Re3 {[%emt 0:00:31]} Bd4 {[%emt 0:00:25] The position is equal.} 65. Rd3 {[%emt 0:00:34]} Ke7 {[%emt 0:00:36]} 66. Kg2 {[%emt 0:00:18]} Be5 {[%emt 0:00:46]} 67. Rd5 {[%emt 0:00:28]} Kf6 {[%emt 0:00:22]} 68. Rb5 {[%emt 0:00:16]} Rg4+ {[%emt 0:00:58]} 69. Kf3 {[%emt 0:00:18]} Rf4+ {[%emt 0:00:10]} 70. Ke3 {[%emt 0:00:35]} Rh4 {[%emt 0:00:15]} 71. f3 {[%emt 0:00:41]} Bd4+ {[%emt 0:00:54]} 72. Kd3 {[%emt 0:00:13]} Be5 {[%emt 0:00:15]} 73. Rb7 {[%emt 0:00:27]} Kg5 {[%emt 0:01:04]} 74. Rb5 {[%emt 0:00:46]} Kf6 {[%emt 0:00:07]} 75. Ke2 {[%emt 0:00:50]} Rh2+ {[%emt 0:00:19]} 76. Ke3 {[%emt 0:00:24]} Rh4 {[%emt 0:00:06]} 77. Rb7 {[%emt 0:00:28]} Kg5 {[%emt 0:00:09]} 78. Rf7 {[%emt 0:00:39] Hoping for Rf5+.} Rf4 {[%emt 0:02:18] Against Rf5+} 79. Rh7 {[%emt 0:00:37]} b3 {[%emt 0:00:18]} 80. Rb7 {[%emt 0:00:06]} b2 {[%emt 0:01:31]} 81. Rb5 {[%emt 0:00:11]} Kf6 {[%emt 0:00:30]} 82. Be4 {[%emt 0:00:35]} Rh4 {[%emt 0:00:26]} 83. Rb6+ {[%emt 0:01:01]} Kg5 {[%emt 0:00:33]} 84. Rb5 {[%emt 0:00:25]} Kf6 {[%emt 0:00:09]} 85. Rb6+ {[%emt 0:00:35]} Kg5 {[%emt 0:00:05]} 86. Rb5 {[%emt 0:00:43] Weighted Error Value: White=0.14 (very precise) /Black=0.16 (very precise)} 1/2-1/2

[Event "1000GM Memorial Day NY IM-B 2023"]
[Site "New York"]
[Date "2023.05.28"]
[Round "6.2"]
[White "Pang, Qi"]
[Black "Nagy, Gabor"]
[Result "0-1"]
[ECO "A31"]
[WhiteElo "2165"]
[BlackElo "2468"]
[Annotator "TA"]
[PlyCount "112"]
[EventDate "2023.05.23"]
[EventType "schev"]
[EventCountry "USA"]
[SourceTitle "playchess.com"]
[Source "ChessBase"]
[SourceQuality "1"]
[TimeControl "5400+30"]

{[%evp 16,112,15,1,12,-20,-8,-32,7,1,0,0,64,-30,-27,-47,-46,-96,-49,-79,-75,-69,-75,-68,-47,-47,-62,-72,-17,-20,-16,-15,-2,-7,0,0,0,0,14,17,10,-20,-17,-74,-89,-127,-121,-131,-139,-146,-144,-147,-123,-149,-146,-150,-151,-150,-93,-82,-40,-83,-91,-163,-158,-181,-181,-227,-220,-249,-241,-250,-230,-239,-231,-279,-280,-281,-230,-275,-157,-166,-154,-202,-173,-208,-169,-190,-149,-560,-550,-29981,-29983,-29987,-29988,-29992,-29993,-29998,-29999]} 1. Nf3 {[%emt 0:00:09]} c5 {[%emt 0:01:06]} 2. c4 {[%emt 0:00:49]} Nc6 {[%emt 0:00:29]} 3. Nc3 {[%emt 0:00:25]} Nf6 {[%emt 0:00:34]} 4. g3 {[%emt 0:00:52]} d6 {[%emt 0:00:13]} 5. Bg2 {[%emt 0:00:06]} g6 {[%emt 0:00:09]} 6. O-O {[%emt 0:00:31]} Bg7 {[%emt 0:00:08]} 7. d4 {[%emt 0:00:42]} cxd4 {[%emt 0:01:58]} 8. Nxd4 {[%emt 0:00:06]} Bd7 {[%emt 0:00:09]} 9. Nb3 {[%emt 0:07:08]} b6 {[%emt 0:08:51] A31: Symmetrical English: 2 Nf3 Nf6 3 d4.} 10. Nd5 {[%emt 0:04:44]} Rc8 {[%emt 0:02:21]} 11. Bg5 {[%emt 0:20:10]} Ng4 {[%emt 0:01:43] Black is slightly better.} 12. h3 {[%emt 0:05:32]} Nge5 {[%emt 0:00:43]} 13. Rc1 {[%emt 0:01:48] [#]} f5 $146 {[%emt 0:02:03]} (13... O-O $11) ({Predecessor:} 13... h6 14. Bd2 Nb8 15. Ne3 Bc6 16. Bc3 Bxg2 17. Kxg2 O-O 18. Nd2 Qd7 19. f4 Qb7+ {½-½ Zhou,J (2619)-Venkatesh,M (2499) Moscow Aeroflot op-A 11th 2012 (3)}) 14. Be3 {[%emt 0:05:49]} (14. Nd4 $1 $14) 14... e6 $11 {[%emt 0:01:08]} 15. Nf4 {[%emt 0:01:08]} Nf7 {[%emt 0:03:06]} 16. Nd3 {[%emt 0:09:40] [#]} ({Better is} 16. Qc2 $15) 16... O-O {[%emt 0:01:07]} (16... e5 $1 $17) 17. f4 {[%emt 0:04:49]} Qe7 {[%emt 0:01:31]} 18. Bd2 {[%emt 0:02:17]} e5 {[%emt 0:02:18]} 19. Bc3 {[%emt 0:01:28]} Rfd8 {[%emt 0:01:39]} 20. Bd5 {[%emt 0:04:02]} Be6 {[%emt 0:00:53]} 21. Nf2 {[%emt 0:01:18]} exf4 {[%emt 0:01:55]} ({Black should try} 21... Qd7 $17) 22. gxf4 {[%emt 0:00:10]} Bxc3 {[%emt 0:01:14]} 23. Rxc3 {[%emt 0:00:11]} Bxd5 {[%emt 0:00:14]} 24. cxd5 {[%emt 0:01:17]} Nb8 {[%emt 0:00:23]} 25. Qd2 {[%emt 0:02:35]} Rxc3 {[%emt 0:01:08]} 26. Qxc3 {[%emt 0:02:04][%cal Oe2e4]} Nd7 {[%emt 0:00:08][%cal Od8e8]} (26... Qxe2 $2 27. Nd4 Qe7 28. Ne6 $18) 27. Nd4 {[%emt 0:00:45] [#] aiming for Nc6.} Re8 {[%emt 0:02:32]} 28. Ne6 {[%emt 0:02:17][%csl Ge6][%cal Rc3g7]} Nd8 {[%emt 0:01:15]} 29. Nd4 {[%emt 0:07:16]} (29. Nc7 $11 {remains equal.} Rf8 30. Rc1) 29... Nf6 $17 {[%emt 0:01:08]} 30. Nc6 {[%emt 0:01:29]} Qf7 {[%emt 0:00:22]} (30... Qxe2 $2 31. Qxf6 Nf7 32. Qd4 $18 (32. Nxa7 Re3 $11)) 31. Nxd8 {[%emt 0:01:43]} Rxd8 {[%emt 0:00:15]} 32. Rd1 {[%emt 0:00:11]} Nxd5 {[%emt 0:01:28]} 33. Qd4 {[%emt 0:00:19]} Nf6 {[%emt 0:01:10]} 34. Rd3 {[%emt 0:00:43]} Re8 {[%emt 0:01:12]} 35. e3 {[%emt 0:01:24]} Re6 {[%emt 0:02:12]} 36. Nd1 {[%emt 0:01:33]} Ne4 {[%emt 0:03:14]} (36... Kg7 $142 37. Qc3 Qb7) 37. Nc3 {[%emt 0:00:30]} Nc5 {[%emt 0:57:01]} 38. Rd1 {[%emt 0:00:53]} Qe7 {[%emt 0:00:00]} 39. Nd5 {[%emt 0:02:18]} (39. Kf2 $17) 39... Qh4 $19 {[%emt 0:00:00] And now ...Ne4 would win.} 40. Rd2 {[%emt 0:04:22]} Qxh3 {[%emt 0:00:00]} ({Worse is} 40... Qe1+ 41. Kh2 $15) 41. Rc2 {[%emt 0:00:49]} (41. Rg2 $142) 41... Qg3+ {[%emt 0:00:00]} 42. Kf1 {[%emt 0:00:24]} Qf3+ {[%emt 0:00:00]} 43. Kg1 {[%emt 0:00:04]} a5 {[%emt 0:00:00][%cal Ba7a5,Ba5a4][%mdl 32]} 44. a3 {[%emt 0:03:09]} a4 {[%emt 0:00:00]} ({Avoid the trap} 44... Qg3+ $2 45. Kh1) 45. Rf2 {[%emt 0:00:50]} Qg3+ {[%emt 0:00:00]} 46. Rg2 {[%emt 0:00:07]} Qe1+ {[%emt 0:00:00]} 47. Kh2 {[%emt 0:00:05]} Qh4+ {[%emt 0:00:00]} 48. Kg1 {[%emt 0:00:06]} Kf7 {[%emt 0:00:00] ...Qe1+ would be deadly.} 49. Qc4 {[%emt 0:01:54]} (49. Qd1 $17) 49... Re4 {[%emt 0:00:00]} 50. Qb5 {[%emt 0:00:52]} Qd8 {[%emt 0:00:00]} 51. Rg3 {[%emt 0:00:43]} Re6 {[%emt 0:00:00]} 52. Nxb6 $2 {[%emt 0:00:56][%mdl 8192] Loses the game.} (52. Qc6 $17 {is tougher.}) 52... Qh4 {[%emt 0:00:00]} 53. Rg2 {[%emt 0:00:44]} Rxe3 {[%emt 0:00:00] Black mates.} 54. Qc4+ {[%emt 0:00:04]} Ne6 {[%emt 0:00:00]} 55. Re2 {[%emt 0:00:22]} Qg3+ {[%emt 0:00:00]} (55... Qxf4 $2 56. Qxf4 Nxf4 57. Rxe3 $18) 56. Kf1 {[%emt 0:00:09]} Rf3+ {[%emt 0:00:00] A cool game by Nagy.   Weighted Error Value: White=0.40/Black=0.17 (very precise)} 0-1